Workbook

Sheet Syntax
A1: Mixed Radix Number Conversions
A2: by Dr. Irv Bromberg, University of Toronto, Canada
A3: irv.bromberg@utoronto.ca | D3: Revised 2022-03-08 (Gregorian)
A4: http://individual.utoronto.ca/intervalmath/mixed/radix.html
A6: Syntax for Visual Basic for Applications (VBA) Macro Functions in the MixedRadix Module:
A8: ToRadix( Bases As String, TheNumber As Variant, Optional ShowBases As Boolean = False, Optional Rounding As Variant = 0 ) As String
A10: The Bases list is comma delimited, optionally enclosed in [ ] or ( ) or { } brackets. Spaces are ignored.
A11: The Bases list can include one radix point, indicated by a semicolon instead of a comma delimiter. Bases to the left of the radix point refer to the integer part of TheNumber
A12: and bases to the right of the radix point refer to the fractional part of TheNumber.
A14: If only a single base is specified then a radix conversion will be returned, and if the base is <=36 then numbers and, if necessary, letters will be employed to represent the digits
A15: without any delimiters or brackets in the result. For example, {2} will convert the given number to a binary string, or {16} will convert it to a hexadecimal string.
A16: With a single base, if the given number has a fractional part then the radix converted result will have a radix point and an appropriate number of radix values to its right.
A18: TheNumber is declared as Variant because it is allowed to contain a Double precision number or a String representing a mixed, proper, or improper fraction (spaces ignored).
A19: If TheNumber is negative then each of the radix values will be negative, or, in the case of a single base with symbolic rendering a single minus sign leftmost.
A21: This function will always return { } brackets around the result list (except in single base radix conversion mode), so it's a good idea to use different brackets for the list of bases.
A23: ShowBases = True switches on the showing of base values alongside the radix values. I realize that traditionally these are rendered as subscripted numbers, for example for
A24: a mixed radix conversion of a moment to separated time values the bases would be shown like { 132441603760 }, but VBA can’t return subscripted values between functions
A25: or back to worksheet cells, so I implemented the showing of plain text /bases like { 13/24, 41/60, 37/60 }. See also the ApplyUnits( ) function described below.
A26: In single base mode ShowBases = True will cause this function to return the converted radix values as comma-delimited base 10 number groups.
A28: The optional Rounding variant parameter controls rounding of the least fractional radix value, with the following choices:
C30: Rounding Method | D30: Code | E30: also see the RoundToLeast( ) function described below
C31: Unrounded | D31: U | E31: least fractional radix value won't be rounded --- this could return too many decimals, but you might want to see them
C32: Truncate | D32: T | E32: least fractional radix value will be floored, thus truncating any decimal points (as always happens for integer radix values)
C33: Reduce Least | D33: R | E33: rounds the least fractional radix value to an integer and then reduces it (using its base as denominator), returning a fraction
C34: Integer | D34: 0 | E34: (digit zero) this is the default (least fractional radix value will be rounded to zero decimal points)
C35: any higher digit | D35: 1 or more | E35: rounds the least fractional radix value to that many decimal points
A37: If desired, use the TrimZeros( ) function to remove leading and trailing zeros from the list of radix values returned by the ToRadix( ) function.
A40: FromRadix( Bases As String, Radices As String, Optional FractType As String = "D" ) As Variant
A42: Converts the given radix values to a base 10 number using the given radix bases.
A43: The Radices string may contain one radix point (semicolon), which can be anywhere in the string (provided that it correlates with the position of the radix point in the given Bases list),
A44: including the beginning or end. If lead zeros were suppressed by ToRadix( ) and if the Radices string contains any fractional bases then they must be preceded by a radix point ( ; ),
A45: as would have been originally returned by the ToRadix( ) function call. By default the fractional part, if any, is returned as decimal points, but the user can specify other fraction types
A46: (as used for many of the Tibetan Calendar examples):
B48: Code | C48: Meaning
B49: P | C49: Proper fraction
B50: I | C50: Improper fraction (will return as Proper if Numerator is less than Denominator)
B51: M | C51: Mixed fraction (will return as Proper if Whole part is zero)
B52: D | C52: (default) Decimal fraction
A54: When returning a Whole number with or without a Decimal fraction the return type is Double, otherwise fractions are returned as type String (text).
A55: See also the Whole( ), Numerator( ), and Denominator( ) functions below.
A58: Nth( List As String, Optional ItemNo As Integer, Optional RemoveSlashBase As Boolean = True ) As Variant
A60: Returns the Nth comma-delimited numeric item from the given list (which can be a list of bases or radix values and can contain a radix point semicolon that will be treated like a comma).
A61: By default, /bases are removed, returning a Double number, but if RemoveSlashBase = False and there is a /base then it returns the fraction as a String (text).
A63: If ItemNo is positive then it is counted from the left of the List, if it is negative then it is counted from the right of the list.
A64: ItemNo = -1 is a convenient way to extract the least radix or least base from a list, without needing to know the number of items in the list. Least() is equivalent.
A65: ItemNo = 0 or is omitted then Nth( ) returns the count of items in the list.
A66: If ItemNo is out-of-range then that item doesn't exist in the list, in which case Nth( ) returns zero.
A68: Ten LISP-like functions call Nth( ) to do their work, and each take one List string as parameter: NthFirst(), NthSecond(), NthThird(), NthFourth(), and so on up to NthTenth().
A69: All of these functions that indirectly call the Nth( ) function also accept and pass on the optional RemoveSlashBase parameter.
A70: (Unfortunately, the "Nth" prefix is necessary to avoid confusion with built-in worksheet functions, and for consistency.)
A72: ApplyUnits( List As String, Units As String, Optional Plurals As Boolean = True, Optional SkipZeros As Boolean = False ) As String
A74: Given a List of radix values, and a list of Units to apply to them, returns a string that lists each radix value alongside its respective unit.
A76: The units change to appropriate singular or plural forms unless Plurals = False. Clearly if Units are in a non-English language or are
A77: abbreviations or punctuation or symbols then you should pass Plurals as False to suppress pluralization.
A78: The default plural form simply has an "s" appended to the unit, but if that is inappropriate then you can specify the single and plural forms,
A79: for example "foot/feet" or "penny/pence", or you can specify individual units to be the same in singular and plural forms, for example "x $100/x $100".
A81: If the unit starts with the special symbol "#" then a numeric suffix will be prefixed to the unit (st, nd, rd, th …), without plurals.
A83: If TrimZeros( ) was applied to and shortened the list of radix values then ApplyUnits( ) will skip the units that correspond to the removed zeros.
A84: If SkipZeros = True is passed then all radix values of zero will be omitted from the returned result, but because the positions are undefined for
A85: the remaining radix values after skipping zeros it won't be possible to use FromRadix( ) on the radices with units to recover the correct number.
A86: In such a case use the original radices including zeros to recover the correct number, if required.
A88: If the Units list radix point ";" is in the wrong position or is missing then ApplyUnits( ) will return an error message to that effect.
A90: Passing bases as the List is convenient for confirming their sequence, meanings, and maximum counts.
A93: SigmaX( List1 As String, List2 As String ) As Double
A95: Given two comma-delimited numeric lists containing the same number of elements, return the sum of the products of the corresponding elements.
A96: If one list has fewer elements than the other then it will first be padded on the left with an appropriate number of zeros
A99: RoundToLeast( Bases as String, TheNumber As Double, Optional Decimals As Integer = 0 ) As Double
A101: Returns TheNumber rounded to the least significant radix. This is the same as using the default Rounding = 0 when calling the ToRadix( ) function.
A102: Normally the fractional bases to the right of the radix point are used for rounding, but if there are none then rounds TheNumber to the specified number of decimal points (default = zero).
A105: SpaceEvery( Interval As Integer, TheString As String) As String
A107: Removes all spaces from TheString, then inserts one space at intervals from radix point to left, and radix point to right.
A108: Useful for binary or hexadecimal strings to divide into nybbles or bytes or larger substrings.
A109: TheString will be returned unchanged if it contains one or more comma delimiter(s).
A112: TrimZeros( Radices As String ) As String
A114: Removes leading zeros to the left of the radix point and trailing zeros to the right of the radix point.
A115: If no radix values remain after removing trailing zeros then it also removes the radix point.
A116: It's probably not a good idea to trim zeros from a list intended for calendrical calculations or that will be passed to the SigmaX( ) function.
A119: ReduceFraction( Numerator As Double, Denominator As Double, Optional ImproperFraction As Boolean = False, Optional compact As Boolean = True )
A121: Returns a string containing the fraction Numerator / Denominator, reduced if possible. Numerator and Denominator must be integers --- they are Double for extended range.
A122: If ImproperFraction = True then wil return an improper fraction if Numerator is greater than Denominator.
A123: The compact flag controls the spacing around the "/" in the fraction. If set to False then slash will have leading and trailing space " / ".
A124: Most often there is no need to specify the optional parameters.
A126: The parts of a fraction or mixed fraction can be extracted from the string returned from ReduceFraction(), ignoring all spaces:
A127: Whole( ) returns the whole part that is in front of the fraction, or zero if there is none.
A128: Numerator( ) returns the numerator, or zero if there is none.
A129: Denominator( ) returns the denominator, or one if there is none.
A131: ReduceFractStr( Fraction As String, Optional ImproperFraction As Boolean = False, Optional compact As Boolean = True) As String
A133: This function is like ReduceFraction( ) but it accepts a Fraction string, which can be mixed, improper, or proper.
A134: It just calls the Whole( ), Numerator( ), and Denominator( ) functions, described above, to get the components of the fraction,
A135: and passes them on, along with the optional flags, to the ReduceFraction( ) function.
A138: RoundIt( Result As Double, Decimals As Integer, SigFigs As Integer, Optional Direction As RoundingDirection = Simple) As Double
A140: This available function isn't used by any of the demo examples nor internally by any of the above functions.
A141: The intention was to use it, but eventually other ways were found to accomplish the desired performance.
A142: Rounds to a specified number of decimal points or decimal figures --- positive rounds to right of decimal point, negative to the left.
A143: Then rounds to the specified number of significant figures --- mandatory parameter, but if not desired then pass a large number like 20.
A145: Rounding Directions:
B146: LowerBound = round lower bound outward (downward)
B147: Simple (default) = normal rounding to closest value (used for non-intervals)
B148: UpperBound = round upper bound outward (upward)
A150: Outward rounding is particularly useful when rounding the bounds of intervals or analytical reference ranges or uncertainty ranges,
A151: to ensure that the rounded range includes the full unrounded range.
A152: These rounding issues are admittedly beyond the scope of mixed radix conversions.
A155: ContinuedFraction( TargetValue As Double, Optional MinConvergent As Integer = 2, Optional MaxConvergent As Integer = 12, Optional ErrorLimit As Double = 0.01) As String
A157: Uses the continued fraction method to find a series of progressively better fractional approximations (called "convergents") to the given
A158: TargetValue. The search terminates when the a convergent's parts-per-trillion error is less than the ErrorLimit or when it reaches the
A159: specified maximum convergent. The final mixed or proper fraction is returned as a text string. If it returns a mixed fraction that you don't
A160: want then pass the inverse of the TargetValue or pass the fractional result to ReduceFractStr( ) with the ImproperFraction flag = True.
A162: If the fractional result has an absurd number of digits then try specifying a lower MaxConvergent or a greater ErrorLimit.

Sheet Calendar
A1: Calendrical Examples and Validation of Mixed Radix Conversions
A2: Examples involving calendars, cycles, mean year or month, dates, times, angles
A3: http://individual.utoronto.ca/intervalmath/mixed/radix.html
A4: Note: The abbreviation "CCUE" refers to the book "Calendrical Calculations: The Ultimate Edition" (4th, 2018) by Reingold and Dershowitz,
A5: which introduced Mixed Radix conversions on page 27.
A7: Cells marked with a | B7: yellow | C7: background and bold test contain numbers that the user can change.
A9: Time as integers vs. fractions
A10: Bases | B10: [ 24,60,60 ] | D10: [ ; 24,60,60 ] | E10: spaces are ignored in bases lists
A11: Given Time | B11: 102341 | C11: seconds | E11: and brackets are optional
C12: / 86400 seconds/day = | D12: =B11/86400 -> 1.184502315 | E12: days
A13: Mixed Radix | B13: =ToRadix(B10,B11) -> {1, 4, 25, 41} | D13: =ToRadix(D10,D12) -> {1; 4, 25, 41} | E13: note radix point position
A14: Back to Number | B14: =FromRadix(B10,B13) -> 102341 | C14: seconds | D14: =FromRadix(D10,D13) -> 1.184502315 | E14: days
A15: Show Bases | B15: =ToRadix(B10,B11,TRUE) -> {1, 4/24, 25/60, 41/60} | D15: =ToRadix(D10,D12,TRUE) -> {1; 4/24, 25/60, 41/60}
A16: Back to Number | B16: =FromRadix(B10,B15) -> 102341 | C16: seconds | D16: =FromRadix(D10,D15) -> 1.184502315 | E16: days
A17: Above row shows that presence of /bases in {mixed radix list} doesn't interfere with conversion back to number
A18: Nth( List ) = item count | C18: =Nth(B13) -> 4 | D18: count of items in mixed radix list (programmatically useful, not no much on worksheets)
A19: Extract Nth radix value | B19: 3 | C19: =Nth(B15,B19) -> 25 | D19: positive item# counts from left, any /base present is discarded
A20: Extract Nth radix value | B20: -1 | C20: =Nth(B15,B20) -> 41 | D20: negative item# counts from right
A23: Example from p27 of CCUE
A24: Bases | B24: [ 7 ; 24, 60, 60 ]
A25: Given Mixed Radix | B25: {4, 1; 12, 44, 2.88} | D25: authors didn't provide mandatory radix point
A26: Convert to Number | B26: =FromRadix(B$24,B25) -> 29.5305888888889 | D26: days
A27: Back to Mixed Radix | B27: =ToRadix(B$24,B$26) -> {4, 1; 12, 44, 3} | E27: default rounding of least radix to integer
A28: Back to Number | B28: =FromRadix(B$24,B27) -> 29.5305902777778 | D28: days | E28: increased by rounding
A29: Show Bases | B29: =ToRadix(B24,B26,TRUE,2) -> {4, 1/7; 12/24, 44/60, 2.88/60} | E29: least radix value rounded to 2 decimal points
A30: Back to Number | B30: =FromRadix(B$24,B29) -> 29.5305888888889 | D30: days | E30: original value preserved
A31: Mixed Radix | B31: =ToRadix(B$24,B$26,,3) -> {4, 1; 12, 44, 2.88} | E31: least radix value rounded to 3 decimal points (unchanged)
A32: Append Hundredths | B32: [ 7 ; 24, 60, 60, 100 ]
A33: Back to Mixed Radix | B33: =ToRadix(B$32,B$26) -> {4, 1; 12, 44, 2, 88} | D33: exact
A34: Raw Mixed Radix | B34: =ToRadix(B$32,B$26,,0) -> {4, 1; 12, 44, 2, 88} | D34: still exact
A35: Back to Number | B35: =FromRadix(B$32,B34) -> 29.5305888888889 | D35: days | E35: same as above
A36: Show Bases | B36: =ToRadix(B$32,B$26,TRUE) -> {4, 1/7; 12/24, 44/60, 2/60, 88/100}
A37: Back to Number | B37: =FromRadix(B$32,B36) -> 29.5305888888889 | D37: days | E37: same as above
A38: Nth(List) counts items | B38: =Nth(B36) -> 6 | D38: count of items in mixed radix list (programmatically useful, not no much on worksheets)
A39: Extract Nth radix value | B39: 5 | C39: =Nth(B36,B39) -> 2 | D39: Nth function treats radix point like a comma
D40: (If extracting the 5th item with all its decimal points, you have to format it with
D41: at least 10 decimal points to see more than 2.88 with or without trailing zeros.)
A44: https://en.wikipedia.org/wiki/Mixed_radix
A45: Given mixed radix values
A46: 32 | B46: weeks | C46: w
A47: 5 | B47: days | C47: d | D47: 7
A48: 7 | B48: hours | C48: h | D48: 24
A49: 45 | B49: minutes | C49: m | D49: 60 | E49: ; | F49: Why is radix point indicated after minutes?
A50: 15 | B50: seconds | C50: s | D50: 60 | F50: (Don't know, go with the flow…)
A51: 500 | B51: milliseconds | C51: ms | D51: 1000
A53: [7, 24, 60; 60, 1000] | E53: [7; 24, 60, 60, 1000] | F53: shifted radix point left, after days
A54: {32,5,7,45;15,500} | B54: from these figure out what was the number | E54: {32,5;7,45,15,500} | F54: move the radix point to the corresponding position
A55: =FromRadix(A53,A54) -> 330225.2583 | B55: minutes (seconds and milliseconds in fraction) | E55: =FromRadix(E53,E54) -> 229.3230961 | F55: mixed radices converted to days
A56: =ToRadix(A53,A55) -> {32, 5, 7, 45; 15, 500} | C56: got back radices | E56: =ToRadix(E53,E55) -> {32, 5; 7, 45, 15, 500} | F56: converted back to mixes radices
A57: =ToRadix(A53,A55,TRUE) -> {32, 5/7, 7/24, 45/60; 15/60, 500/1000} | D57: show bases | E57: =ToRadix(E53,E55,TRUE) -> {32, 5/7; 7/24, 45/60, 15/60, 500/1000} | G57: show bases
A58: Units to Apply | B58: w,d,h,m;s,ms | E58: =-E55 -> -229.3230961 | F58: what happens with a negative number?
A59: Apply Units (no plurals) | B59: =ApplyUnits(A56,B58,FALSE) -> 32 w, 5 d, 7 h, 45 m ; 15 s, 500 ms | F59: each converted radix is a negative number
E60: =ToRadix(E53,E58) -> {-32, -5; -7, -45, -15, -500}
E61: =FromRadix(E53,E60) -> -229.3230961 | F61: got back the negative number
A64: https://github.com/colwem/mixed-radix | D64: seconds/86400
A65: 100000 | B65: seconds | D65: =A65/86400 -> 1.157407407 | E65: days
A66: 1 | B66: day
A67: 3 | B67: hours | C67: 24
A68: 46 | B68: minutes | C68: 60
A69: 40 | B69: seconds | C69: 60
A71: Bases | B71: [ 24,60,60 ] | E71: [ ; 24,60,60 ] | F71: radix point leftmost
A72: Convert # to radices | B72: =ToRadix(B71,A65) -> {1, 3, 46, 40} | E72: =ToRadix(E71,D65) -> {1; 3, 46, 40}
A73: Back to number | B73: =FromRadix(B71,B72) -> 100000 | E73: =FromRadix(E71,E72) -> 1.157407407 | F73: days x 86400 seconds/day = | G73: =E73*86400 -> 100000 | H73: seconds
A74: Show Bases | B74: =ToRadix(B71,A65,TRUE) -> {1, 3/24, 46/60, 40/60} | E74: =ToRadix(E71,D65,TRUE) -> {1; 3/24, 46/60, 40/60}
A75: Back to number | B75: =FromRadix(B71,B74) -> 100000 | E75: =FromRadix(E71,E74) -> 1.157407407
A76: Units to Apply | B76: d,h,m,s | E76: d;h,m,s
A77: Apply Units | B77: =ApplyUnits(B72,B76,FALSE) -> 1 d, 3 h, 46 m, 40 s | E77: =ApplyUnits(E72,E76,FALSE) -> 1 d ; 3 h, 46 m, 40 s
A78: Full Units to Apply | B78: day,hour,minute,second | E78: day;hour,minute,second
A79: Apply Full Units | B79: =ApplyUnits(B72,B78) -> 1 day, 3 hours, 46 minutes, 40 seconds | E79: =ApplyUnits(E72,E78) -> 1 day ; 3 hours, 46 minutes, 40 seconds
E80: radix point position is critically important in units list
A82: Mayan Calendar Cycles | C82: (reference: CCUE page 170) | E82: =365+B130 -> 365.242035844378 | F82: derived below
A83: Units of the Long Count (in blue): | D83: days | E83: Mayan solar years
A84: kin | B84: 1 | C84: day | D84: 1 | E84: (approximate)
A85: uinal | B85: 20 | C85: kin | D85: =B85*D84 -> 20
A86: tun | B86: 18 | C86: uinal | D86: 360 | E86: =D86/E$82 -> 0.98565
A87: katun | B87: 20 | C87: tun | D87: 7200 | E87: =D87/E$82 -> 19.713
A88: baktun | B88: 20 | C88: katun | D88: 144000 | E88: 394.26
A89: pictun | B89: 20 | C89: baktun | D89: 2880000 | E89: 7885.2
A90: calabtun | B90: 20 | C90: pictun | D90: 57600000 | E90: 157703.6
A91: kinchiltun | B91: 20 | C91: calabtun | D91: 1152000000 | E91: 3154072.9
A92: alautun | B92: 20 | C92: kinchiltun | D92: 23040000000 | E92: 63081457.6
A94: Units to Apply | B94: alautun, kinchiltun, calabtun, pictun, baktun, katun, tun, uinal, kin
A95: Confirm Limit / Unit | B95: =ApplyUnits(B97,B94) -> 20 kinchiltuns, 20 calabtuns, 20 pictuns, 20 baktuns, 20 katuns, 20 tuns, 18 uinals, 20 kins
A97: Long Count Bases | B97: [ 20, 20, 20, 20, 20, 20, 18, 20 ] | E97: reverse
A98: Long Count | B98: {0, 6, 4, 17} | E98: =ToRadix(B97,E100) -> {1, 3, 10, 11}
A99: Apply Units | B99: =ApplyUnits(B98,B94) -> 0 katuns, 6 tuns, 4 uinals, 17 kins | E99: =ApplyUnits(E98,B94) -> 1 katun, 3 tuns, 10 uinals, 11 kins
A100: Total Days in Count | B100: =FromRadix(B97,B98) -> 2257 | E100: 8491
C102: haab calendar cycle = | D102: =18*20+5 -> 365 | E102: days
C103: tzolkin calendar cycle = | D103: =13*20 -> 260 | E103: days
A105: 46 | B105: tzolkins = | C105: 405 | D105: lunations = | E105: =A105*D103/C105 -> 29.5308641975309 | F105: days per Mayan mean lunation
E106: [ 7 ; 24, 60, 60, 1000 ]
D107: Least radix value truncated: | E107: =ToRadix(E106,E105) -> {4, 1; 12, 44, 26, 667}
D108: Show Bases: | E108: =ToRadix(E106,E105,TRUE) -> {4, 1/7; 12/24, 44/60, 26/60, 667/1000}
D109: The least radix value reduces but needs decimal points: | E109: =ReduceFraction(Nth(E107,-1),Nth(E106,-1)) -> 667/1000 | F109: (can't reduce with decimal points)
D110: Try reducing as big numbers: | E110: 66666666666667/100000000000000
D111: Can't reduce with 7 as last decimal point: | E111: =ReduceFractStr(E110) -> 66666666666667/100000000000000
D112: Try again reducing as big numbers, without 7: | E112: 66666666666666/100000000000000
D113: Reduction only by a factor of 2: | E113: =ReduceFractStr(E112) -> 33333333333333/50000000000000
D114: Try maximum number of repeating decimal points: | E114: 0.6666666667
D115: Continued Fraction function finds the exact fraction: | E115: =ContinuedFraction(E114) -> 2/3 | F115: (zero error at 2nd convergent)
D116: Try only 2 decimal points: | E116: 0.670000000000000
D117: Continued Fraction function finds the exact fraction: | E117: =ContinuedFraction(E116,,2) -> 2/3 | F117: (if limited to 2nd convergent)
D118: Least radix value rounded to 6 decimals is obviously 2/3: | E118: =ToRadix(E106,E105,,6) -> {4, 1; 12, 44, 26, 666.666667}
E119: = 4 weeks 1 day 12 hours 44 minutes 26+2/3 seconds
A120: Compare with mean astronomical duration of lunation near the beginning of the peak of the Mayan era (250 AD):
E121: 4 weeks 1 day 12 hours 44 minutes 3+21/73 seconds
A122: Obviously the Mayan estimate is rather inaccurate. It is typical of what might have been based on solar eclipse studies.
A123: It's flatly impossible to obtain the accurate duration of the mean lunation interval using any eclipse studies,
A124: over any span of time, even if the eclipses are sequential in a saros series, hence occurring in similar circumstances.
A125: The triple-saros interval would yield the best similarity between eclipses.
A127: {7,13,0,0,0} | B127: Mayan long count for 365-day haab to move twice through the solar year
A128: =FromRadix(B97,A127) -> 1101600 | B128: days | C128: =A128/D102 -> 3018.082192 | D128: haab cycles
A129: 2 x haab / (habb cycles - 2) =
B130: =2*365/(C128-2) -> 0.242035844377629 | D130: mean solar year fraction in excess of 365 days
B131: =ContinuedFraction(B130) -> 26645/110087 | D131: exact fraction for the decimal points above
B132: [ ; 24, 60, 60, 1000 ]
B133: =ToRadix(B132,B130) -> {; 5, 48, 31, 897}
B134: =ToRadix(B132,B130,TRUE) -> {; 5/24, 48/60, 31/60, 897/1000}
B135: = 365 days 5 hours 48 minutes 31+112/125 seconds
A136: Compare with mean astronomical solar years near the beginning of the peak of the Mayan era 200 AD):
A137: See chart: | B137: http://individual.utoronto.ca/kalendis/leap/Solar-Year-Range.pdf
B139: Solar Year Type | C139: 365 days + ... | D139: Comments (colors match the chart linked above)
B140: Longest Solar Year (aphelion) | C140: 05:49:56 | D140: steadily decreasing due to tidal slowing of the Earth rotation rate
B141: South Solstitial Year | C141: 05:49:53 | D141: just past beginning of rapidly declining era that continues to the present
B142: Southward Equinoctial Year | C142: 05:49:18 | D142: near middle of rapidly declining era that continues to the present
B143: Average Solar Year | C143: 05:49:05 | D143: steadily decreasing due to tidal slowing of the Earth rotation rate
B144: Northward Equinoctial Year | C144: 05:48:53 | D144: near middle of stable era that continues to the present
B145: North Solstitial Year | C145: 05:48:16 | D145: (closest to Mayan year) entering stable era that continues to the present
B146: Shortest Solar Year (perihelion) | C146: 05:48:14 | D146: steadily decreasing due to tidal slowing of the Earth rotation rate
A148: The Mayan territory was near the Tropic of Cancer, consistent with reckoning their solar year according to the north solstice.
A151: CCUE p67 Gregorian calendar [ alt-gregorian-year-from-fixed() ] and p100 Icelandic calendar
A152: compute the number of elapsed periods of 4, 100, and 400 years using mixed-radix arithmetic
A153: [4, 25, 4] | E153: {97,24,1,0} | F153: leap days
A154: 4 | B154: centuries per 400-year cycle | E154: 97 | F154: per 400-year cycle
A155: 25 | B155: quadrennia per century | E155: 24 | F155: per century
A156: 4 | B156: years per quadrennium | E156: 1 | F156: per quadrennium
E157: 0 | F157: for additional years
A158: =C169 -> {5, 0, 5, 1} | B158: SigmaX | C158: =E153 -> {97,24,1,0} | D158: =SigmaX(A158,C158) -> 490 | E158: total leap days
D160: days elapsed | E160: same, calculated
D161: prior to year | E161: using SigmaX( ) | F161: +1 = rata die of
A162: year | B162: prior year | C162: to radix | D162: using Nth( ) | E162: 365 x prior years + leap days | F162: New Year Day
A163: 100 | B163: =A163-1 -> 99 | C163: =ToRadix(A$153,B163) -> {24, 3} | D163: =B163*365+Nth(C163,-4)*E$154+Nth(C163,-3)*E$155+Nth(C163,-2)*E$156+Nth(C163,-1)*E$157 -> 36159 | E163: =B163*365+SigmaX(C163,E$153) -> 36159 | F163: =D163+1 -> 36160
A164: 350 | B164: =A164-1 -> 349 | C164: {3, 12, 1} | D164: 127469 | E164: =B164*365+SigmaX(C164,E$153) -> 127469 | F164: =D164+1 -> 127470
A165: 1600 | B165: =A165-1 -> 1599 | C165: {3, 3, 24, 3} | D165: 584022 | E165: =B165*365+SigmaX(C165,E$153) -> 584022 | F165: =D165+1 -> 584023
A166: 1900 | B166: =A166-1 -> 1899 | C166: {4, 2, 24, 3} | D166: 693595 | E166: 693595 | F166: =D166+1 -> 693596
A167: 2000 | B167: 1999 | C167: {4, 3, 24, 3} | D167: 730119 | E167: 730119 | F167: =D167+1 -> 730120
A168: 2021 | B168: 2020 | C168: {5, 0, 5, 0} | D168: 737790 | E168: 737790 | F168: 737791
A169: 2022 | B169: 2021 | C169: {5, 0, 5, 1} | D169: 738155 | E169: 738155 | F169: 738156
A170: 2200 | B170: 2199 | C170: {5, 1, 24, 3} | D170: 803168 | E170: 803168 | F170: 803169
A171: 2300 | B171: 2299 | C171: {5, 2, 24, 3} | D171: 839692 | E171: 839692 | F171: 839693
A172: 2400 | B172: 2399 | C172: {5, 3, 24, 3} | D172: 876216 | E172: 876216 | F172: 876217
A175: Gregorian Calendar Mean Year
A176: Years Per Cycle | B176: 400 | C176: years
A177: Days Per Common Year | B177: 365 | C177: days
A178: Leap Days Per Cycle | B178: =B176/4-B176/100+1 -> 97 | C178: days | D178: (calculated)
A179: Days Per Cycle | B179: =B176*B177+97 -> 146097 | C179: days | D179: 400 x 365 + 97
A180: Mean Year + Fraction | B180: =ReduceFraction(B179,B176) -> 365+97/400 | D180: days
A181: Mean Year | B181: =B179/B176 -> 365.2425 | C181: days | D181: Days Per Cycle / Years Per Cycle | F181: (exact decimal)
A182: Bases for Time | B182: [ ; 24, 60, 60, 400 ] | D182: Start with least base = years per cycle
A183: Mixed Radix with bases | B183: =ToRadix(B182,B181,TRUE) -> {365; 5/24, 49/60, 12/60, 0/400} | E183: Least radix value is zero, therefore time is exact to the second
A184: Trim Zeros | B184: =TrimZeros(B183) -> {365; 5/24, 49/60, 12/60} | E184: Trailing zero dropped
A185: Bases for Time | B185: [ ; 24, 60, 60 ] | D185: Drop least base
A186: Mixed Radix with bases | B186: =ToRadix(B185,B181,TRUE) -> {365; 5/24, 49/60, 12/60} | E186: Exact mean year in time units
A187: Long Form | B187: =Nth(B186,1)&" days, "&Nth(B186,2)& " hours, "&Nth(B186,3)&" minutes, and "&Nth(B186,4)&" seconds" -> 365 days, 5 hours, 49 minutes, and 12 seconds
A188: Mean Year from Fraction | B188: =ToRadix(B185,B180) -> {365; 5, 49, 12}
A189: Units to Apply | B189: day;hour,minute,second
A190: Apply Units | B190: =ApplyUnits(B188,B189) -> 365 days ; 5 hours, 49 minutes, 12 seconds
A193: Dee Calendar Mean Year
A194: Years Per Cycle | B194: 33 | C194: years
A195: Days Per Common Year | B195: 365 | C195: days
A196: Leap Days Per Cycle | B196: =INT(B194/4) -> 8 | C196: days
A197: Days Per Cycle | B197: =B194*B195+B196 -> 12053 | C197: days | D197: 33 x 365 + 8
A198: Mean Year + Fraction | B198: =ReduceFraction(B197,B194) -> 365+8/33 | C198: days
A199: Mean Year | B199: =B197/B194 -> 365.242424242424 | D199: Days Per Cycle / Years Per Cycle | F199: (approximate, "24" repeats)
A200: Bases for Time | B200: [ ; 24, 60, 60, 33 ] | D200: Start with least base = years per cycle, and try reducing the least radix value
A201: Mixed Radices | B201: =ToRadix(B200,B199,FALSE,"R") -> {365; 5, 49, 5, 5/11} | D201: ="Least radix value got reduced by a factor of "&Least(B200)/Denominator(Least(B201,FALSE)) -> Least radix value got reduced by a factor of 3
A202: Long Form | B202: =Nth(B201,1)&" days, "&Nth(B201,2)& " hours, "&Nth(B201,3)&" minutes, and "&Nth(B201,4)&"+"&Least(B201,FALSE)&" seconds" -> 365 days, 5 hours, 49 minutes, and 5+5/11 seconds
A203: Mean Year from Fraction | B203: =ToRadix(B200,B198,FALSE,"R") -> {365; 5, 49, 5, 5/11} | D203: denominator remains on reduced least radix value
A206: Symmetry454 and Symmetry010 Calendar Mean Year (for northward equinox)
A207: Years Per Cycle | B207: 293 | C207: years
A208: Days Per Common Year | B208: 364 | C208: days | D208: 52 weeks
A209: Leap Days Per Cycle | B209: =7*52 -> 364 | C209: days | D209: 7 x 52 leap weeks
A210: Days Per Cycle | B210: =B207*B208+B209 -> 107016 | C210: days | D210: 293 x 364 + 364 or simply 294 x 364
A211: Mean Year + Fraction | B211: =ReduceFraction(B210,B207) -> 365+71/293 | D211: days
A212: Mean Year | B212: =B210/B207 -> 365.242320819113 | D212: Days Per Cycle / Years Per Cycle | F212: (approximate, the first 146 decimal digits repeat)
A213: Bases for Time | B213: [ ; 24, 60, 60, 293 ] | D213: Start with least base = years per cycle, and try reducing the least radix value
A214: Mixed Radix with bases | B214: =ToRadix(B213,B212,FALSE,"R") -> {365; 5, 48, 56, 152/293} | D214: Least radix value doesn't reduce
A215: Long Form | B215: =Nth(B214,1)&" days, "&Nth(B214,2)& " hours, "&Nth(B214,3)&" minutes, and "&Nth(B214,4)&"+"&Least(B214,FALSE)&" seconds" -> 365 days, 5 hours, 48 minutes, and 56+152/293 seconds
A216: Mean Year from Fraction | B216: =ToRadix(B213,B211,FALSE,"R") -> {365; 5, 48, 56, 152/293} | D216: =D214 -> Least radix value doesn't reduce
B217: Even though the mean year is limited to double floating point precision, that is good enough
B218: to resolve the long form of the mean year down to the exact fraction of a second.
A221: Symmetry454 and Symmetry010 Calendar Mean Year (alternate for northward equinox)
A222: Years Per Cycle | B222: 524 | C222: years
A223: Days Per Common Year | B223: 364 | C223: days | D223: 52 weeks
A224: Leap Days Per Cycle | B224: =7*93 -> 651 | C224: days | D224: 7 x 93 leap weeks
A225: Days Per Cycle | B225: =B222*B223+B224 -> 191387 | C225: days | D225: 293 x 364 + 364 or simply 294 x 364
A226: Mean Year + Fraction | B226: =ReduceFraction(B225,B222) -> 365+127/524 | D226: days
A227: Mean Year | B227: =B225/B222 -> 365.242366412214 | D227: Days Per Cycle / Years Per Cycle | F227: (approximate, 0.24 is followed by 130 repeating digits)
A228: Bases for Time | B228: [ ; 24, 60, 60, 524 ] | D228: Start with least base = years per cycle, and try reducing the least radix value
A229: Mixed Radices | B229: =ToRadix(B228,B227,FALSE,"R") -> {365; 5, 49, 0, 60/131} | D229: ="Least radix value got reduced by a factor of "&Least(B228)/Denominator(Least(B229,FALSE)) -> Least radix value got reduced by a factor of 4
... 838 more rows

Sheet Mixed
A1: Examples and Validation of Mixed Radix Conversions
A2: http://individual.utoronto.ca/intervalmath/mixed/radix.html
A3: Note: The abbreviation "CCUE" refers to the book "Calendrical Calculations: The Ultimate Edition" (4th, 2018) by Reingold and Dershowitz,
A4: which introduced Mixed Radix conversions on page 27.
A6: Cells marked with a | B6: yellow | C6: background and bold test contain numbers that the user can change.
A8: Tactical units in a Roman army
A9: Bases | B9: [10,6,10,8] | E9: legion | F9: unlimited
A10: Given Number | B10: 16894 | E10: cohort | F10: 10
A11: Mixed Radix | B11: =ToRadix(B9,B10) -> {3, 5, 1, 1, 6} | E11: century | F11: 6
A12: Back to Number | B12: =FromRadix(B9,B11) -> 16894 | E12: contubernia | F12: 10
A13: Show Bases | B13: =ToRadix(B9,B10,TRUE) -> {3, 5/10, 1/6, 1/10, 6/8} | E13: soldier | F13: 8
A14: Back to Number | B14: =FromRadix(B9,B13) -> 16894
A15: Units to Apply | B15: legion, cohort, century/centuries, contubernia/contuberniae, soldier
A16: Apply Units | B16: =ApplyUnits(B11,B15) -> 3 legions, 5 cohorts, 1 century, 1 contubernia, 6 soldiers
A19: Roman Coins: Augustan Values (27 BC to 301 AD)
A20: Contributed by Stephan Lenk, of Germany, March 2022
A22: Name of Coin | B22: Metal | C22: Sestertii | D22: Radix Base
A23: Aureus | B23: gold | C23: 100
A24: Quinarius Aureus | B24: gold | C24: 50 | E24: no ancient authority, 12+1/2 denarii, half-aureus, omit
A25: Denarius | B25: silver | C25: 4 | D25: 25 | E25: 1/25 of Aureus
A26: Quinarius Argenteus | B26: silver | C26: 2 | D26: 2 | E26: shorten to Quinarius since we must omit the gold version
A27: Sestertius | B27: silver | C27: 1 | D27: 2; | E27: base denomination, radix point to right
A28: Dupondius | B28: brass | C28: 1/2 | D28: 2
A29: As or Assarius | B29: bronze or copper | C29: 1/4 | D29: 2 | E29: use the longer name, even though rarely used by Romans
A30: Semis | B30: copper | C30: 1/8 | D30: 2
A31: Quadrans | B31: bronze | C31: 1/16 | D31: 2
A33: Names to Apply/Plurals | B33: aureus/aurei, denarius/dēnāriī, quinarius/quinarii, sestertius/sestertii; dupondius/dupondii, assarius/assarii, semis/semises, quadrans/quadrantes
B34: any coin that has a radix base of 2 will never be seen in more than 1 because 2 carries to the next higher denomination
B35: nevertheless the plural form of the coin name is applied to zeros
A37: Bases | B37: [25, 2, 2; 2, 2, 2, 2]
A38: Total Value | B38: =559+1/16+1/8+1/4+1/2 -> 559.9375 | D38: arithmetic expression used to intentionally get at least one for each coin
A39: Mixed Radices | B39: =ToRadix(B37,B38) -> {5, 14, 1, 1; 1, 1, 1, 1}
A40: Total Value from Radices | B40: =FromRadix(B37,B39) -> 559.9375
A41: Apply Names | B41: =ApplyUnits(B39,B33) -> 5 aurei, 14 dēnāriī, 1 quinarius, 1 sestertius ; 1 dupondius, 1 assarius, 1 semis, 1 quadrans
A42: Total Value from Names | B42: =FromRadix(B37,B41) -> 559.9375
A43: Add 1 quadrans | B43: =B42+1/16 -> 560 | D43: adding just 1 quadrans = 1/16 leaves only 5 aurei and 15
A44: Mixed Radices Again | B44: =ToRadix(B37,B43) -> {5, 15, 0, 0; 0, 0, 0, 0}
A45: Total Value from Radices | B45: =FromRadix(B37,B44) -> 560
A46: Apply Names Again | B46: =ApplyUnits(B44,B33) -> 5 aurei, 15 dēnāriī, 0 quinarii, 0 sestertii ; 0 dupondii, 0 assarii, 0 semises, 0 quadrantes
A47: Total Value from Names | B47: =FromRadix(B37,B46) -> 560
A48: Names Without Zeros | B48: =ApplyUnits(B44,B33,,TRUE) -> 5 aurei, 15 dēnāriī | D48: used the optional SkipZeros flag, but can't go back to the total value:
A49: Total Value from Names | B49: =FromRadix(B37,B48) -> 25 | D49: can't recover total after skipping radix values of zero (positions wrong)
A52: Factorial number system: each base is the next sequential integer value
A53: Bases | B53: [ 9, 8, 7, 6, 5, 4, 3, 2, 1 ]
A54: Given Number | B54: 437
A55: Mixed Radix | B55: =ToRadix(B53,B54) -> {3, 3, 0, 2, 1, 0}
A56: Back to Number | B56: =FromRadix($B53,B55) -> 437
A57: Show Bases | B57: =ToRadix(B53,B54,TRUE) -> {3/6, 3/5, 0/4, 2/3, 1/2, 0/1}
A58: Back to Number | B58: =FromRadix($B53,B57) -> 437
A59: Units to Apply | B59: x 9!, x 8!, x 7!, x 6!, x 5!, x 4!, x 3!, x 2!, x 1!
A60: Apply Units | B60: =ApplyUnits(B55,B59,FALSE) -> 3 x 6!, 3 x 5!, 0 x 4!, 2 x 3!, 1 x 2!, 0 x 1!
A63: Fibonorial number system: each base is the next sequential Fibonacci number:
A64: Bases | B64: [ 144, 89, 55, 34, 21, 13, 8, 5, 3, 2 ]
A65: Given Number | B65: 1784006
A66: Mixed Radix | B66: =ToRadix(B$64,B$65) -> {27, 4, 10, 2, 4, 1, 0}
A67: Back to Number | B67: =FromRadix(B$64,B66) -> 1784006
A68: Show Bases | B68: =ToRadix(B$64,B$65,TRUE) -> {27/34, 4/21, 10/13, 2/8, 4/5, 1/3, 0/2}
A69: Back to Number | B69: =FromRadix(B$64,B68) -> 1784006
A72: Primorial number system: each base is the next sequential prime number
A73: Bases | B73: [ 29,23,19,17,13,11,7,5,3,2 ]
A74: Given Number | B74: 3218147
A75: Mixed Radix | B75: =ToRadix(B$73,B$74) -> {6, 5, 2, 1, 3, 2, 2, 1}
A76: Back to Number | B76: =FromRadix(B$73,B75) -> 3218147
A77: Show Bases | B77: =ToRadix(B$73,B$74,TRUE) -> {6/19, 5/17, 2/13, 1/11, 3/7, 2/5, 2/3, 1/2}
A78: Back to Number | B78: =FromRadix(B$73,B77) -> 3218147
A81: Bases | B81: [ 15,10,5 ]
A82: Given Number | B82: 534
A83: Mixed Radix | B83: =ToRadix(B$81,B$82) -> {10, 6, 4}
A84: Back to Number | B84: =FromRadix(B$81,B83) -> 534
A85: Show bases | B85: =ToRadix(B$81,B$82,TRUE) -> {10/15, 6/10, 4/5}
A86: Back to Number | B86: =FromRadix(B$81,B85) -> 534
A89: Bases | B89: [ 12,9,6 ]
A90: Given Number | B90: 571
A91: Mixed Radix | B91: =ToRadix(B$89,B$90) -> {10, 5, 1}
A92: Back to Number | B92: =FromRadix(B$89,B91) -> 571
A93: Show bases | B93: =ToRadix(B$89,B$90,TRUE) -> {10/12, 5/9, 1/6}
A94: Back to Number | B94: =FromRadix(B$89,B93) -> 571
A97: UK currency before decimalisation
A98: 12 pence per shilling, 20 shillings per pound
B99: pound | C99: 4
A100: 20 | B100: shilling | C100: 13
A101: 12 | B101: penny | C101: 7
A103: bases | B103: [ 20, 12 ]
A104: mixed radix | B104: ="{ "&C99&", "&C100&", "&C101& " }" -> { 4, 13, 7 } | C104: assembled from list above
A105: Units to Apply | B105: pound, shilling, penny/pence
A106: Apply Units | B106: =ApplyUnits(B104,B105) -> 4 pounds, 13 shillings, 7 pence
A107: money total | B107: =FromRadix(B103,B104) -> 1123 | C107: pence
A108: pounds (total/(20x12)) | B108: =B107/(20*12) -> 4.679166667 | C108: pounds
A110: Bases | B110: [ 4, 3, 2 ]
A111: Number | B111: 40
A112: Mixed Radix | B112: =ToRadix(B110,B111) -> {1, 2, 2, 0}
A113: Back to number | B113: =FromRadix(B$110,B112) -> 40
A114: Show Bases | B114: =ToRadix(B110,B111,TRUE) -> {1, 2/4, 2/3, 0/2}
A115: Back to number | B115: =FromRadix(B$110,B114) -> 40
A118: Bases | B118: [16,16,16,16]
A119: Number | B119: 732847
A120: Mixed Radix | B120: =ToRadix(B118,B119) -> {11, 2, 14, 10, 15} | D120: numeric radix values if more than a single base specified
A121: Back to Number | B121: =FromRadix(B118,B120) -> 732847
A122: Show Bases | B122: =ToRadix(B118,B119,TRUE) -> {11, 2/16, 14/16, 10/16, 15/16}
A123: Back to Number | B123: =FromRadix(B118,B122) -> 732847 | D123: show bases not ignored but not useful
A126: {8,4;5,10}
A127: 0.5
A128: =ToRadix(A126,A127) -> {0; 2, 5} | B128: may have leading zeros
A129: =FromRadix(A126,A128) -> 0.5 | B129: back to number
A130: =TrimZeros(A128) -> {0; 2, 5} | B130: Trim zeros (removes 0, but not 0; or 0/base;)
A131: =FromRadix(A126,A130) -> 0.5 | B131: back to number
A132: =ToRadix(A126,A127,TRUE) -> {0/4; 2/5, 5/10} | B132: show bases
A133: =FromRadix(A126,A132) -> 0.5 | B133: back to number
A134: =TrimZeros(A132) -> {0/4; 2/5, 5/10} | B134: Trim zeros (removes 0, but not 0; or 0/base;)
A135: =FromRadix(A126,A134) -> 0.5 | B135: without leading zeros, back to number
A138: Canadian Cash | B138: denom | C138: base
A139: Currency bills | B139: $100 | C139: leftmost radix will count hundreds of dollars
B140: $50 | C140: omit, uncommonly used, not divisible by $20
B141: $20 | C141: 5 make $100, doesn't divide into $50 but very commonly used
B142: $10 | C142: 2 make $20
B143: $5 | C143: 2 make $10, but not divisible by $2, so omit
A144: Toonie bimetalic coin | B144: $2 | C144: 5 make $10, commonly used
A145: Loonie brass plate coin | B145: $1 | C145: 2 make $2, commonly used
A146: half-dollar | B146: $0.50 | C146: 2 make $1, but omit because rarely used
A147: quarter | B147: $0.25 | C147: 4 make $1
A148: dime | B148: $0.10 | C148: omit, doesn't divide into 25 cents
A149: nickel | B149: $0.05 | C149: 5 make $0.25
A150: No pennies/cents --- rule in Canada for cash transactions is to round amount to nearest 5 cents.
A152: Bases | B152: [ 5, 2, 5, 2 ; 4, 5 ]
A153: Amount | B153: $673.88
A154: Round to nickel | B154: =roundtoleast(B152,B153) -> $673.90
A155: Money | B155: =ToRadix(B152,B154) -> {6, 3, 1, 1, 1; 3, 3}
A156: Money with Bases | B156: =ToRadix(B152,B154,TRUE) -> {6, 3/5, 1/2, 1/5, 1/2; 3/4, 3/5}
A157: Back to round number | B157: =FromRadix(B152,B156) -> $673.90
A158: Units to Apply | B158: x $100/x $100, x $20/x $20, x $10/x $10, toonie, loonie; quarter, nickel
A159: Apply Units | B159: =ApplyUnits(B155,B158) -> 6 x $100, 3 x $20, 1 x $10, 1 toonie, 1 loonie ; 3 quarters, 3 nickels
A162: Test Fraction with Bases for Trailing Zeros, and demo of calling the TrimZeros( ) function
A163: Bases | B163: [ 2 ; 8, 6, 4, 2 ]
A164: Number | B164: 0.5
A165: Mixed Radix | B165: =ToRadix(B$163,B$164) -> {0; 4, 0, 0, 0} | D165: has leading and trailing zeros
A166: Trim Zeros | B166: =TrimZeros(B165) -> {0; 4} | D166: leaves at least one zero to the left of the radix point, if it was present
A167: Show Bases | B167: =ToRadix(B$163,B$164,TRUE) -> {0/2; 4/8, 0/6, 0/4, 0/2}
A168: Trim Zeros | B168: =TrimZeros(B167) -> {0/2; 4/8} | D168: leaves at least one zero to the left of the radix point, if it was present
A169: Back to Number | B169: =FromRadix(B163,B168) -> 0.5
A170: Mixed Radix | B170: =TrimZeros(ToRadix(B$163,B$164)) -> {0; 4} | D170: Nested Trim Zeros call removes leading and trailing zeros
A171: Back to Number | B171: =FromRadix(B163,B170) -> 0.5
A174: United States customary units: Length
A175: Miles, Yards (1760), Feet (3), Inches (12); Pica (6), Points (12)
A176: Bases | B176: [ 1760, 3, 12; 6, 12 ]
A177: Number | B177: =340.78-3+12 -> 349.78
A178: Round To Least | B178: =roundtoleast(B176,B177) -> 349.7777778 | C178: rounded to an integer number of Points
A179: Mixed Radix | B179: =ToRadix(B$176,B$177) -> {9, 2, 1; 4, 8}
A180: Show Bases | B180: =ToRadix(B$176,B$177,TRUE) -> {9/1760, 2/3, 1/12; 4/6, 8/12}
A181: Back to Rounded Number | B181: =FromRadix(B176,B179) -> 349.7777778
A182: Units to Apply | B182: mile, yard, foot/feet, inch/inches; pica, point
A183: Apply Units | B183: =ApplyUnits(B179,B182) -> 9 yards, 2 feet, 1 inch ; 4 picas, 8 points
A186: United States customary units: Liquid Volume
A187: oil barrel, gallon (42), quart (4), pint (2), cup (2), ounce (8), tablespoon (2); teaspoon (3), minim (80)
A188: Note: excluded US fluid dram = 60 minims because not a divisor of the next higher unit = teaspoon = 80 minims
A189: Note: excluded US shot = 3 tablespoons because not a multiple of the next lower unit = ounce = 2 tablespoons
A190: Note: excluded gill = 4 ounces because rarely used, whereas cups above and ounces below are heavily used
A191: Note: excluded pottle even though valid base because rarely used, whereas gallons above and quarts below are heavily used
A192: Note: excluded liquid barrel because not an integer multiple of gallons = 31.5
A193: Note: excluded hogshead because not an integer multiple of oil barrels = 1.5
A195: Bases | B195: [ 42, 4, 2, 2, 8, 2, 3 ; 80 ]
A196: Number | B196: =45198+4+37.45/80 -> 45202.46812
A197: Round To Least | B197: =roundtoleast(B195,B196) -> 45202.4625 | D197: rounded to an integer number of minims
A198: Mixed Radix | B198: =ToRadix(B$195,B$196) -> {1, 16, 3, 0, 1, 5, 1, 1; 37}
A199: Show Bases | B199: =ToRadix(B$195,B$196,TRUE) -> {1, 16/42, 3/4, 0/2, 1/2, 5/8, 1/2, 1/3; 37/80}
A200: Back to Rounded Number | B200: =FromRadix(B195,B198) -> 45202.4625
A201: Units to Apply | B201: oil barrel, gallon, quart, pint, cup, ounce, tablespoon, teaspoon ; minim
A202: Apply Units | B202: =ApplyUnits(B198,B201) -> 1 oil barrel, 16 gallons, 3 quarts, 0 pints, 1 cup, 5 ounces, 1 tablespoon, 1 teaspoon ; 37 minims
A205: United States customary units: Dry Volume
A206: Note: excluded cubic inches because not an integer number in a pint
A207: Note: excluded dry barrels because not an integer number of bushels
A208: Bases | B208: [ 4, 2, 4, 2 ]
A209: Units to Apply | B209: bushel, peck, dry gallon, dry quart, dry pint
A210: Confirm Limit / Unit | B210: =ApplyUnits(B208,B209) -> 4 pecks, 2 dry gallons, 4 dry quarts, 2 dry pints
A211: Number | B211: 173
A212: Mixed Radix | B212: =ToRadix(B208,B211) -> {2, 2, 1, 2, 1}
A213: Show Bases | B213: =ToRadix(B208,B211,TRUE) -> {2, 2/4, 1/2, 2/4, 1/2}
A214: Apply Units | B214: =ApplyUnits(B212,B209) -> 2 bushels, 2 pecks, 1 dry gallon, 2 dry quarts, 1 dry pint
A217: United States customary units: Avoirdupois Weight
A218: Bases | B218: [ 20, 100; 16, 16 ] | D218: 1 dram = 27+11⁄32 grains, not an integer so exclude grains
A219: Units to Apply | B219: ton, hundredweight, pound; ounce, dram
A220: Abbreviated Units | B220: ton, cwt, lb; oz, dr
A221: Confirm Limit / Unit | B221: =ApplyUnits(B218,B219) -> 20 hundredweights, 100 pounds ; 16 ounces, 16 drams
A222: Abbrev Limit / Unit | B222: =ApplyUnits(B218,B220,FALSE) -> 20 cwt, 100 lb ; 16 oz, 16 dr | E222: plurals suppressed
A223: Number | B223: 6517.425
A224: Round To Least | B224: =roundtoleast(B218,B223) -> 6517.425781
A225: Mixed Radix | B225: =ToRadix(B218,B224) -> {3, 5, 17; 6, 13}
A226: Show Bases | B226: =ToRadix(B218,B224,TRUE) -> {3, 5/20, 17/100; 6/16, 13/16}
A227: Apply Units | B227: =ApplyUnits(B225,B219) -> 3 tons, 5 hundredweights, 17 pounds ; 6 ounces, 13 drams
A228: Apply Abbrev Units | B228: =ApplyUnits(B226,B220,FALSE) -> 3 ton, 5 cwt, 17 lb ; 6 oz, 13 dr | E228: plurals suppressed
A229: Back to Number | B229: =FromRadix(B218,B228) -> 6517.425781
A232: United States FDA Cooking Measures
A233: Bases | B233: [ 8, 2, 3 ]
A234: Units to Apply | B234: cup, fluid ounce, tablespoon, teaspoon
A235: Confirm Limit / Unit | B235: =ApplyUnits(B233,B234) -> 8 fluid ounces, 2 tablespoons, 3 teaspoons
A236: Number | B236: 155
A237: Mixed Radix | B237: =ToRadix(B233,B236) -> {3, 1, 1, 2}
A238: Show Bases | B238: =ToRadix(B233,B236,TRUE) -> {3, 1/8, 1/2, 2/3}
A239: Apply Units | B239: =ApplyUnits(B237,B234) -> 3 cups, 1 fluid ounce, 1 tablespoon, 2 teaspoons
A240: Back to Number | B240: =FromRadix(B233,B239) -> 155
A243: Israeli Bank Notes | B243: ₪ = Shekel (שֶׁקֶל) | D243: = | E243: 100 Agarot (אגרות)
... 24 more rows

Sheet Single
A1: Examples and Validation of Single Base Radix Conversions
A2: http://individual.utoronto.ca/intervalmath/mixed/radix.html
A4: Single Base Names:
A5: base | B5: number system
A6: 2 | B6: binary | D6: =ToRadix(A6,D$14) -> 101100001
A7: 3 | B7: ternary | D7: 111002
A8: 4 | B8: quaternary | D8: 11201
A9: 5 | B9: quinary | D9: 2403
A10: 6 | B10: senary or heximal | D10: 1345
A11: 7 | B11: septenary | D11: 1013
A12: 8 | B12: octal | D12: 541
A13: 9 | B13: nonary | D13: 432
A14: 10 | B14: decimal | D14: 353 | E14: change this to watch the other bases values update
A15: 11 | B15: undenary | D15: =ToRadix(A15,D$14) -> 2A1
A16: 12 | B16: duodecimal or dozenal | D16: =ToRadix(A16,D$14) -> 255
A17: 14 | B17: quadroodecimal | D17: =ToRadix(A17,D$14) -> 1B3
A18: 13 | B18: tridecimal | D18: =ToRadix(A18,D$14) -> 212
A19: 14 | B19: tetradecimal | D19: 1B3
A20: 15 | B20: pentadecimal | D20: 188
A21: 16 | B21: hexadecimal | D21: 161
A22: 17 | B22: heptadecimal | D22: 13D
A23: 18 | B23: octodecimal | D23: 11B
A24: 19 | B24: enneadecimal | D24: IB
A25: 20 | B25: vigesimal | D25: HD
A26: 36 | B26: hexatrigesimal | D26: 9T
A27: 60 | B27: sexagesimal | D27: {5, 53}
A30: Octal | C30: Binary | E30: If a number greater than 511 is input then there
A31: {8,8,8,8,8,8,8,8} | C31: {2,2,2,2,2,2,2,2} | E31: won't be enough bases, and the leftmost radix value
A32: 1278 | C32: 72 | E32: will become an unlimited base 10 number.
A33: =ToRadix(A31,A32) -> {2, 3, 7, 6} | C33: =ToRadix(C31,C32) -> {1, 0, 0, 1, 0, 0, 0} | E33: with leading zeros forced by specified bases
A34: =TrimZeros(A33) -> {2, 3, 7, 6} | C34: =TrimZeros(C33) -> {1, 0, 0, 1, 0, 0, 0} | E34: trim zeros
A35: =FromRadix(A31,A34) -> 1278 | C35: =FromRadix(C31,C34) -> 72
A37: Decimal
A38: {10,10,10,10,10,10}
A39: 1278 | B39: convert base 10 to base 10
A40: =ToRadix(A38,A39) -> {1, 2, 7, 8} | B40: with leading zeros
A41: =FromRadix(A38,A40) -> 1278 | B41: impressive, right?
A42: =TrimZeros(A40) -> {1, 2, 7, 8} | B42: trim zeros
A43: =FromRadix(A38,A42) -> 1278 | B43: back to number
A45: Binary
A46: {2} | B46: single base treated like radix conversion without delimiters or brackets
A47: 94 | B47: the leftmost bit after conversion will always be binary
A48: =ToRadix(A46,A47) -> 1011110 | B48: always without leading zeros
A49: =ToRadix(A46,A47,TRUE) -> {1, 0, 1, 1, 1, 1, 0} | B49: with single base, show bases option shows individual radices without /base
A51: 2 | B51: single base for direct binary conversion
A52: 54648 | B52: base 10 number to convert
A53: =ToRadix(A51,A52) -> 1101010101111000 | B53: result has no brackets or delimiters
A54: =FromRadix(A51,A53) -> 54648 | B54: back to base 10 number
A55: =ToRadix(A51,A52,TRUE) -> {1, 1, 0, 1, 0, 1, 0, 1, 0, 1, 1, 1, 1, 0, 0, 0} | D55: show bases forces number groups
A56: =FromRadix(A51,A55) -> 54648 | B56: back to number
A57: Optionally use SpaceEvery( ) function to insert spaces for readability:
A58: =SpaceEvery(4,A53) -> 1101 0101 0111 1000 | B58: inserted spaces to separate into nybbles
A59: =FromRadix(A51,A58) -> 54648 | B59: inserted spaces don't interfere with converting to number
A60: =SpaceEvery(8,A53) -> 11010101 01111000 | B60: inserted spaces to separate into bytes
A61: =SpaceEvery(4,A55) -> {1, 1, 0, 1, 0, 1, 0, 1, 0, 1, 1, 1, 1, 0, 0, 0} | D61: inserting spaces has no effect on numeric radix groups
A64: Ternary (base 3)
A65: single base | B65: 3
A66: number | B66: 371
A67: converted to base 3 | B67: =ToRadix(B65,B66) -> 111202
A68: back to number | B68: =FromRadix(B65,B67) -> 371
A71: Quaternary (base 4)
A72: single base | B72: 4
A73: number | B73: 5718
A74: converted to base 4 | B74: =ToRadix(B72,B73) -> 1121112
A75: back to number | B75: =FromRadix(B72,B74) -> 5718
A78: Octal
A79: {8} | B79: single base treated like radix conversion
A80: 65535
A81: =ToRadix(A79,A80) -> 177777
A82: =FromRadix(A79,A81) -> 65535 | B82: back to number
A83: =ToRadix(A79,A80,TRUE) -> {1, 7, 7, 7, 7, 7} | B83: show bases forces number groups
A84: =FromRadix(A79,A83) -> 65535 | B84: back to number
A87: Single bases 11 thru 36 use letters A thru Z for digits 10 thru 35
A90: Hexadecimal
A91: 16 | B91: brackets not necessary
A92: =2^19-1+1/7 -> 524287.1429 | B92: if number has fractional part then
A93: hexadecimal uses 0 thru 9 and letters A thru F
A94: =ToRadix(A91,A92) -> 7FFFF;2492492 | B94: converted radix has fractional part
A95: =FromRadix(A91,A94) -> 524287.1429 | B95: back to number
A96: =ToRadix(A91,A92,TRUE) -> {7, 15, 15, 15, 15; 2, 4, 9, 2, 4, 9, 2} | D96: show bases forces number groups
A97: =FromRadix(A91,A96) -> 524287.1429 | B97: back to number
A98: Optionally use SpaceEvery( ) function to insert spaces for readability:
A99: =SpaceEvery(2,A94) -> 7 FF FF ; 24 92 49 2 | B99: bytes relative to radix point
A100: =SpaceEvery(4,A94) -> 7 FFFF ; 2492 492 | B100: 32-bit words relative to radix point
A101: 165.9 | B101: all fractions of 10 terminate in decimal
A102: =ToRadix(A91,A101) -> A5;E666666 | B102: but repeat in hexadecimal
A103: 165.5 | B103: (except for 5/10 = 0.5 decimal
A104: =ToRadix(A91,A103) -> A5;8 | B104: and 0.8 in hexadecimal)
A105: -241.2 | B105: make it a negative number
A106: =ToRadix(A91,A105) -> -F1;3333333 | B106: yields one minus sign in front of the converted value
A107: =FromRadix(A91,A106) -> 240.8 | B107: and when converting back to the number the minus sign is preserved
A110: Hexadecimal | B110: [16,16,16,16] | D110: fractions ignored unless radix point and fractional bases provided
A111: Given Number | B111: 732847
A112: Radix values | B112: =ToRadix(B110,B111) -> {11, 2, 14, 10, 15} | E112: numeric radix values if more than a single base specified
B113: =FromRadix(B110,B112) -> 732847
A114: show bases not ignored | B114: =ToRadix(B110,B111,TRUE) -> {11, 2/16, 14/16, 10/16, 15/16}
A115: Back to Number | B115: =FromRadix(B110,B114) -> 732847
A118: Vigesimal (base 20), was used by the Aztecs and Mayans (not with the number and letter symbols that we use, of course)
A119: single base | B119: [20]
A120: number | B120: 3471.58
A121: converted to base 20 | B121: =ToRadix(B119,B120) -> 8DB;BC | C121: uses numerals 0 thru 9, and letters A through J
A122: back to number | B122: =FromRadix(B119,B121) -> 3471.58
A125: 36 | B125: brackets not necessary
A126: 87654321
A127: =ToRadix(A125,A126) -> 1G6QI9 | B127: uses numerals 0 thru 9, and letters A through Z
A128: =FromRadix(A125,A127) -> 87654321 | B128: back to number
A129: =ToRadix(A125,A126,TRUE) -> {1, 16, 6, 26, 18, 9} | B129: show bases forces number groups
A130: =FromRadix(A125,A129) -> 87654321 | B130: back to number
A131: =LOWER(A127) -> 1g6qi9 | B131: lowercase of hex value above
A132: =FromRadix(A125,A131) -> 87654321 | B132: lettercase doesn't matter when converting back to number
A135: Sexigesimal (base 60)
A136: {60}
A137: 5418356.003
A138: =ToRadix(A136,A137) -> {25, 5, 5, 56; 0, 12, 14, 24}
A139: =FromRadix(A136,A138) -> 5418356.003
A142: sexigesimal fraction
A143: {;60,60,60,60,60,60,60,60} | C143: 1/3 is a single radix and 1/9 is a dual radix fraction in sexigesimal
A144: 0.1428571429 | C144: any fraction of 7 generates 3 repeating fractional radix groups in sexigesimal
A145: =ToRadix(A143,A144) -> {; 8, 34, 17, 8, 34, 17, 8, 34} | C145: any fraction of 11 generates 5 repeating fractional radix groups (2nd set limited by floating point imprecision)
A146: =FromRadix(A143,A145) -> 0.1428571429 | B146: back to number
A149: Mathmetica 5 book examples (pages 725-6) --- long before MixedRadix[{ list of bases }] was introduced to the language
A150: base = hexadecimal | B150: {16}
A151: given number | B151: 1234135634
A152: converted to hex | B152: =ToRadix(B150,B151) -> 498F6A52
A153: cvt to numeric groups | B153: =ToRadix(B150,B151,TRUE) -> {4, 9, 8, 15, 6, 10, 5, 2} | D153: forced by ShowBases=True
A154: from hex string | B154: =FromRadix(B150,B152) -> 1234135634
A155: from number groups | B155: =FromRadix(B150,B153) -> 1234135634
A157: base = binary | B157: {2}
A158: two number examples | B158: 56 | C158: 37
A159: converted to binary | B159: =ToRadix(B157,B158) -> 111000 | C159: =ToRadix(B157,C158) -> 100101
A160: back to numbers | B160: =FromRadix(B157,B159) -> 56 | C160: =FromRadix(B157,C159) -> 37
A162: base = hexadecimal | B162: {16}
A163: lettercase doesn't matter | B163: ffffaa00
A164: converted to base 10 | B164: =FromRadix(B162,B163) -> 4294945280
A166: hexadecimal numbers | B166: converted to base 10
A167: fffaa2 | B167: =FromRadix(B$162,A167) -> 16775842
A168: ff | B168: =FromRadix(B$162,A168) -> 255
B169: -1
B170: =SUM(B167:B169) -> 16776096 | C170: sum
A172: base = binary | B172: {2}
A173: binary # with fraction | B173: 101;100101
A174: convert to base 10 | B174: =FromRadix(B172,B173) -> 5.578125 | C174: Mathematica 5 book rounds this to 5.57813
A177: Converting between numeric bases (simply go through base 10 as the intermediate)
A178: Starting base | B178: [10]
A179: Number | B179: 1234
A180: Hexadecimal | B180: [16]
B181: =ToRadix(B180,B179) -> 4D2
A182: Octal | B182: [8]
B183: =ToRadix(B182,B179) -> 2322
A184: Or nest the conversion | B184: =ToRadix(B182,FromRadix(B180,B181)) -> 2322 | C184: (base 10 intermediate is internal, not displayed)

Sheet Web
A1: Mixed Radix Conversion Resources on the Web
A3: Home page for this workbook:
A4: http://individual.utoronto.ca/intervalmath/mixed/radix.html
A6: "Mixed radix" topic at Wikipedia:
A7: https://en.wikipedia.org/wiki/Mixed_radix
A9: "Factorial number system" topic at Wikipedia:
A10: https://en.wikipedia.org/wiki/Factorial_number_system
A12: "Primorial" topic at Wikipedia:
A13: https://en.wikipedia.org/wiki/Primorial
A15: Mixed Radix Numeral System class and Counter (open source Mixed Radix Calculator):
A16: https://csharpcodewhisperer.blogspot.com/2015/10/mixed-radix-numeral-system-class-and.html
A18: Mixed Radix Number Representations at Wolfram --- web demo of up to 4 bases for converting a number:
A19: https://demonstrations.wolfram.com/MixedRadixNumberRepresentations/
A21: Description of the term "Base" at Wolfram MathWorld:
A22: https://mathworld.wolfram.com/Base.html
A24: "Standard positional numeral systems" subtopic at Wikipedia:
A25: https://en.wikipedia.org/wiki/List_of_numeral_systems#Standard_positional_numeral_systems
A27: Henning's web site concerning the Kālacakra Calendar (Tibetan Calendar)
A28: http://www.kalacakra.org/calendar/kcal.htm
